Cogmind - Beta 9.4 @@@ ROGUE MODE // 2020.02.09 @ 15:33:23 Player: robin Result: Destroyed by H-55 Commando with Gauss Rifle Performance ------------- Evolutions (2) 1000 Regions Visited (4) 800 Robots Destroyed (14) 70 Value Destroyed (616) 616 Prototype IDs (0) 0 Alien Tech Used (0) 0 Bonus (200) 200 TOTAL SCORE: 2686 Bonus ------- Pacifist 200 Cogmind --------- Core Integrity 0/550 Matter 251/300 Energy 100/100 System Corruption 0% Temperature Cool (0) Movement Walking (210) Ox3 Location -8/Materials Parts ------- > --- POWER (1) -------- (None) > --- PROPULSION (3) --- Aluminum Leg > --- UTILITY (4) ------ High-capacity Storage Unit > --- WEAPON (3) ------- (None) > --- INVENTORY (12) --- Light Nuclear Core Small Storage Unit Terrain Scanner Peak State ------------ > --- POWER ------------ Improved Ion Engine > --- PROPULSION ------- Light Treads Light Treads Light Treads > --- UTILITY ---------- Small Storage Unit High-capacity Storage Unit Terrain Scanner Seismic Analyzer > --- WEAPON ----------- Beam Rifle Assault Rifle Heavy Assault Rifle > --- INVENTORY -------- Ion Engine Light Ion Engine Improved Ion Engine Light Treads Light Treads Heat Sink Small Storage Unit Light Armor Plating Small Laser Assault Rifle [Rating: 15] Favorites ----------- Power Improved Ion Engine Engine Improved Ion Engine Propulsion Light Treads Treads Light Treads Leg Aluminum Leg Utility Small Storage Unit Device Terrain Scanner Storage Small Storage Unit Processor Targeting Computer Protection Light Armor Plating Weapon Assault Rifle Energy Gun EM Pulse Gun Ballistic Gun Assault Rifle Build | -11 -10 -10 -9 -8 ------- Run | Scr Mat Min Mat Mat Slots Evolved 4 | . . . 2 2 Power . | . . . . . Propulsion 1 | . . . 1 . Utility 2 | . . . 1 1 Weapon 1 | . . . . 1 Parts Attached 35 | 6 2 . 9 18 Power 4 | 1 . . 1 2 Engine 4 | 1 . . 1 2 Core . | . . . . . Reactor . | . . . . . Propulsion 12 | 2 . . 4 6 Treads 9 | . . . 4 5 Leg 3 | 2 . . . 1 Wheel . | . . . . . Hover . | . . . . . Flight . | . . . . . Utility 8 | 1 2 . 1 4 Device 2 | . . . 1 1 Storage 3 | 1 2 . . . Processor 2 | . . . . 2 Hackware . | . . . . . Protection 1 | . . . . 1 Artifact . | . . . . . Weapon 11 | 2 . . 3 6 Energy Gun 5 | 1 . . 2 2 Energy Cannon . | . . . . . Ballistic Gun 6 | 1 . . 1 4 Ballistic Cannon . | . . . . . Launcher . | . . . . . Special Weapon . | . . . . . Impact Weapon . | . . . . . Slashing Weapon . | . . . . . Piercing Weapon . | . . . . . Special Melee Weapon . | . . . . . Unidentified Prototypes . | . . . . . Parts Lost 21 | . . . 2 19 Power 2 | . . . . 2 Propulsion 6 | . . . . 6 Utility 4 | . . . . 4 Weapon 9 | . . . 2 7 Highest Loss Streak 16 | . . . 1 16 Average Slot Usage (%) 94 | . 99 100 96 88 Engine 10 | . 14 14 11 7 Treads 15 | . . . 23 22 Leg 11 | . 28 28 6 . Device 5 | . . . 11 6 Storage 22 | . 27 28 22 18 Processor 1 | . . . . 4 Protection 1 | . . . . 2 Energy Gun 10 | . 14 14 11 7 Ballistic Gun 14 | . 14 14 11 17 Naked Turns . | . . . . . Heaviest Build 54 | 11 43 43 50 54 Greatest Support 60 | 20 20 20 60 60 Greatest Overweight (x) 11 | 1 2 2 2 11 Average Overweight (x) . | . 1 2 . . Largest Inventory Capacity 14 | 6 14 14 14 14 Average Capacity 12 | 5 11 14 14 13 Most Carried 14 | 4 10 10 14 11 Average Carried 8 | 2 8 10 10 8 Final Capacity 14 | 6 14 14 14 12 Final Carried 12 | 4 10 10 12 3 Class Distribution -------------------- 55% | Mutant 12% | Scavenger-Mutant 10% | Scavenger-Gunner 9% | Scavenger-Tank 8% | Scavenger-Skirmisher Dominant Class ---------------- Mutant | -10/Materials Mutant | -10/Mines Mutant | -9/Materials Scavenger-Gunner | -8/Materials Resources | -11 -10 -10 -9 -8 ----------- Run | Scr Mat Min Mat Mat Matter Collected 696 | 185 . . 221 290 Remotely . | . . . . . Salvage Created 712 | . . . 255 457 Parts 31 | . . . 13 18 Haulers Intercepted . | . . . . . Recyclers Shooed 1 | . . . 1 . Parts Field Recycled . | . . . . . Retrieved Matter . | . . . . . Parts Self-Destructed . | . . . . . Prevented . | . . . . . Kills | -11 -10 -10 -9 -8 ------- Run | Scr Mat Min Mat Mat Combat Hostiles Destroyed 13 | . . . 4 9 Melee 1 | . . . . 1 Guns 12 | . . . 4 8 Classes Destroyed 5 | . . . 2 3 Worker 1 | . . . 1 . Grunt 4 | . . . . 4 Duelist 1 | . . . . 1 Sentry 6 | . . . 4 2 Hunter 2 | . . . . 2 Best Kill Streak 3 | . . . 3 3 Combat Bots Only 3 | . . . 1 3 Max Kills in Single Turn 1 | . . . 1 1 Gunslinging . | . . . . . Exploded . | . . . . . Melee 1 | . . . . 1 Uniques/NPCs Destroyed . | . . . . . Combat | -11 -10 -10 -9 -8 -------- Run | Scr Mat Min Mat Mat Damage Taken 2739 | . 69 . 432 2238 Core 597 | . 16 . 26 555 Absorbed by Shields . | . . . . . Core Remaining (%) 95 | 100 . 93 93 . Volleys Fired 57 | . 3 . 13 41 Largest 3 | . 2 . 2 3 Hottest 99 | . 60 . 79 99 Shots Fired 150 | . 6 . 26 118 Gun 150 | . 6 . 26 118 Cannon . | . . . . . Launcher . | . . . . . Special . | . . . . . Kinetic 102 | . 3 . 13 86 Thermal 45 | . . . 13 32 Explosive . | . . . . . Electromagnetic 3 | . 3 . . . Robot Hit Streak 20 | . 1 . 14 20 Robot Miss Streak 4 | . 4 . 1 4 Penetration Max . | . . . . . Secondary Targets 2 | . . . . 2 Max Gunslinging Chain 1 | . . . . 1 Shots Hit Robots 106 | . 1 . 21 84 Core Hits 36 | . . . 9 27 Critical Hits . | . . . . . Critical Kills . | . . . . . Critical Parts Destroyed . | . . . . . Melee Attacks . | . . . . . Impact . | . . . . . Slashing . | . . . . . Piercing . | . . . . . Sneak Attacks . | . . . . . Combat Hostiles . | . . . . . Follow-up Attacks . | . . . . . Damage Inflicted 1320 | . . . 288 1032 Guns 1314 | . . . 288 1026 Cannons . | . . . . . Explosions . | . . . . . Melee . | . . . . . Ramming 6 | . . . . 6 Kinetic 842 | . . . 134 708 Thermal 472 | . . . 154 318 Explosive . | . . . . . Electromagnetic . | . . . . . Impact . | . . . . . Slashing . | . . . . . Piercing . | . . . . . Highest Corruption . | . . . . . Average Corruption . | . . . . . Corruption Purged . | . . . . . Overload Shots . | . . . . . Overflow Damage . | . . . . . Projectiles . | . . . . . Explosions . | . . . . . Melee . | . . . . . Knockbacks . | . . . . . Impact . | . . . . . Kinetic . | . . . . . Secondary . | . . . . . Self-Inflicted Damage . | . . . . . Shots . | . . . . . Rammed 1 | . 1 . . . Targets Rammed 2 | . 1 . . 1 Kicked . | . . . . . Crushed 1 | . . . . 1 Highest Temperature 75 | . . . 33 75 Average Temperature 23 | . . . 13 26 Received Heat Transfer 792 | . . . 108 684 Siege Activations . | . . . . . Robots Corrupted . | . . . . . Combat Hostiles . | . . . . . Parts Fried . | . . . . . Impact Corruptions . | . . . . . Robots Melted . | . . . . . Combat Hostiles . | . . . . . Parts Melted . | . . . . . Heat Transferred 1213 | . . . 444 769 Parts Sabotaged . | . . . . . Parts Stolen . | . . . . . Parts Stripped . | . . . . . Power Chain Reactions . | . . . . . Missiles Intercepted . | . . . . . Alert | -11 -10 -10 -9 -8 ------- Run | Scr Mat Min Mat Mat Peak Influence 194 | . 30 11 153 194 Average Influence 71 | . 15 11 67 137 Maximum Alert Level . | . . . . . Low Security (%) 100 | 100 100 100 100 100 Level 1 . | . . . . . Level 2 . | . . . . . Level 3 . | . . . . . Level 4 . | . . . . . Level 5 . | . . . . . High Security . | . . . . . Max Security . | . . . . . Squads Dispatched 3 | . . . 1 2 Investigation 1 | . . . . 1 Extermination . | . . . . . Reinforcement 2 | . . . 1 1 Assault . | . . . . . Garrison . | . . . . . Intercept . | . . . . . Construction Impeded . | . . . . . Haulers Reinforced . | . . . . . Stealth | -11 -10 -10 -9 -8 --------- Run | Scr Mat Min Mat Mat Distress Signals 3 | . . . . 3 Communications Jammed . | . . . . . Distress Signals . | . . . . . Times Spotted 28 | . 6 . 5 17 Peak Tracking Total 6 | . 5 . 3 6 Tactical Retreats . | . . . . . Traps | -11 -10 -10 -9 -8 ------- Run | Scr Mat Min Mat Mat Traps Triggered 2 | . . . 1 1 Indirectly . | . . . . . Trap Hack Attempts . | . . . . . Triggered . | . . . . . Disarmed . | . . . . . Reprogrammed . | . . . . . Reused . | . . . . . Traps Extracted . | . . . . . Installed . | . . . . . Triggered . | . . . . . Machines | -11 -10 -10 -9 -8 ---------- Run | Scr Mat Min Mat Mat Machines Disabled . | . . . . . Max in Single Turn . | . . . . . Machines Sabotaged . | . . . . . Garrisons Compromised . | . . . . . Overloaded Fab Kills . | . . . . . Fab Network Shutdowns . | . . . . . Hacking | -11 -10 -10 -9 -8 --------- Run | Scr Mat Min Mat Mat Machines Accessed . | . . . . . Terminals . | . . . . . Fabricators . | . . . . . Repair Stations . | . . . . . Recycling Units . | . . . . . Scanalyzers . | . . . . . Garrison Access . | . . . . . Total Hacks . | . . . . . Successful . | . . . . . Failed . | . . . . . Catastrophic . | . . . . . Database Lockouts . | . . . . . Manual . | . . . . . Terminals . | . . . . . Fabricators . | . . . . . Repair Stations . | . . . . . Recycling Units . | . . . . . Scanalyzers . | . . . . . Garrison Access . | . . . . . Terminal Hacks . | . . . . . Fabricator Hacks . | . . . . . Repair Station Hacks . | . . . . . Recycling Unit Hacks . | . . . . . Scanalyzer . | . . . . . Garrison Access Hacks . | . . . . . Unauthorized Hacks . | . . . . . Terminals . | . . . . . Fabricators . | . . . . . Repair Stations . | . . . . . Recycling Units . | . . . . . Scanalyzers . | . . . . . Garrison Access . | . . . . . Data Cores Recovered . | . . . . . Used . | . . . . . Hacking Detections . | . . . . . Full Trace Events . | . . . . . Feedback Events . | . . . . . Feedback Blocked . | . . . . . Robot Schematics Acquired . | . . . . . Robots Built . | . . . . . Matter . | . . . . . Time . | . . . . . Total Robot Build Rating . | . . . . . Part Schematics Acquired . | . . . . . Parts Built . | . . . . . Matter . | . . . . . Time . | . . . . . Total Part Build Rating . | . . . . . Parts Repaired . | . . . . . Time . | . . . . . Parts Recycled . | . . . . . Recycled Matter . | . . . . . Retrieved Matter . | . . . . . Retrieved Components . | . . . . . Parts Scanalyzed . | . . . . . Part Schematics Acquired . | . . . . . Parts Damaged . | . . . . . Bothacking | -11 -10 -10 -9 -8 ------------ Run | Scr Mat Min Mat Mat Used RIF Installer . | . . . . . Robots Hacked . | . . . . . Non-combat . | . . . . . Combat . | . . . . . Robot Hacks Applied . | . . . . . Relay Couplers Released . | . . . . . Robots Rewired . | . . . . . Allies Hacked . | . . . . . Hacks Repelled . | . . . . . Allies | -11 -10 -10 -9 -8 -------- Run | Scr Mat Min Mat Mat Total Allies . | . . . . . Largest Group . | . . . . . Highest-Rated Group . | . . . . . Highest-Rated Ally . | . . . . . Total Orders . | . . . . . Ally Attacks . | . . . . . Total Damage . | . . . . . Kills . | . . . . . Allies Corrupted . | . . . . . Allies Melted . | . . . . . Intel | -11 -10 -10 -9 -8 ------- Run | Scr Mat Min Mat Mat Robot Analysis Total . | . . . . . Derelict Logs Recovered . | . . . . . Drone Launches . | . . . . . Drone Recoveries . | . . . . . Exploration | -11 -10 -10 -9 -8 ------------- Run | Scr Mat Min Mat Mat Turns Passed 1076 | 88 198 105 314 371 Spaces Moved 461 | 64 117 59 124 97 Core 5 | 4 . . . 1 Treads 182 | . . . 95 87 Legs 274 | 60 117 59 29 9 Wheels . | . . . . . Hover . | . . . . . Flight . | . . . . . Fastest Speed 50 | 50 120 180 160 160 Average Speed 158 | 118 152 180 165 169 Slowest Speed 600 | 150 180 180 180 600 Overloaded Moves . | . . . . . Propulsion Burnouts . | . . . . . Robots Hopped . | . . . . . Cave-ins Triggered . | . . . . . Exploration Rate (%) 15 | 5 25 23 17 9 Regions Visited 4 Branch Regions 1 Pre-discovered Areas 1 | . . 1 . . Known Exits Taken . | . . . . . Unknown Exits Taken 4 | 1 1 1 1 . Scrap Searched . | . . . . . Spaces Dug . | . . . . . Terrain Destroyed . | . . . . . Melee . | . . . . . Projectile . | . . . . . AOE . | . . . . . Actions | -11 -10 -10 -9 -8 --------- Run | Scr Mat Min Mat Mat Total 683 | 73 131 58 209 212 Wait 100 | . 1 . 50 49 Move 457 | 63 116 58 123 97 Hop . | . . . . . Pick Up 24 | 4 7 . 9 4 Fast Attach 6 | 6 . . . . Attach 17 | . 1 . 4 12 Detach . | . . . . . Swap 12 | . 1 . 5 6 Drop 8 | . 1 . 5 2 Fire 57 | . 3 . 13 41 Melee . | . . . . . Ram . | . . . . . Kick 1 | . 1 . . . Crush 1 | . . . . 1 Escape Stasis . | . . . . . Rewire . | . . . . . Trap . | . . . . . Miscellaneous . | . . . . . Route ------- -11/Scrapyard -10/Materials -10/Mines -9/Materials -8/Materials History --------- Turn | Location | Event 30 | -11/Scrapyard | Discovered new exit (range 14) 89 | -11/Scrapyard | Entered Materials 209 | -10/Materials | Discovered new exit (range 16) 287 | -10/Materials | Entered Mines 318 | -10/Mines | Build established: Mutant 372 | -10/Mines | Discovered new exit (range 12) 375 | -10/Mines | Learned location of Storage (-8) 392 | -10/Mines | Entered Materials 392 | -9/Materials | Evolved 2 slots: Propulsion x1, Utility x1 694 | -9/Materials | Discovered new exit (range 9) 706 | -9/Materials | Entered another Materials area 706 | -8/Materials | Evolved 2 slots: Utility x1, Weapon x1 1040 | -8/Materials | Core integrity fell below 50% 1068 | -8/Materials | Core integrity fell below 20% 1077 | -8/Materials | Destroyed by H-55 Commando with Gauss Rifle Last Messages --------------- 01046_ Penetrated by Slug. 01047_ K-01 Serf cleans the Terminal. 01050_ Acquired 52 matter. 01052_ Penetrated by Slug. 01052_ K-01 Serf cleans the Terminal. 01053_ Lgt. Ion Engine destroyed. 01054_ Acquired Aluminum Leg. 01055_ Lgt. Treads destroyed. 01055_ Crushed L-31 Rogue. 01055_ L-31 Rogue destroyed. 01055_ K-01 Serf collects debris. 01057_ Lgt. Treads destroyed. 01058_ Penetrated by Slug. 01058_ Lgt. Treads destroyed. 01059_ Acquired 15 matter. 01062_ Slug penetrates Wall. 01072_ K-01 Serf collects debris. 01073_ Sml. Storage Unit destroyed. 01074_ Penetrated by Slug. 01075_ K-01 Serf collects debris. Map ----- +----------------------------------------------------+ | ?????????????????????????????????????????????????? | | ?????????????????????????????????????????????????? | | ?????????????????????????????????????????????????? | | ?????????????????????????????????????????????????? | | ?????????????????????????????????????????????????? | | ?????????????????????????????????????????????????? | | ?????????????????????????????????????????????????? | | ?????????????????????????????????????????????????? | | ?????????????????????????????????????????????????? | | ?????????????????????????????????????????????????? | | ?????????????????????????????????????????????????? | | ?????????????????????????????????????????????????? | | ?????????????????????????????????????????????????? | | ?????????????????????????????????????????????????? | | ??????????????????????????????????????????? ?????? | | ??????????????????????????????????????" ?????????? | | ??????????????????????????????????#?"???"??????#?? | | ??????????????????????#######??????????????????#?? | | ?????????????????????? [ #?????? ???????#???# | | ??????????????????????""" #??#?????? ? ???????? | | ???????????????????????"" !???????#??#?????#??#?? | | ???????????????????????"" ???##?????#???#?#????? | | ?????????????????????# ? ???#????###????#???#### | | ??????????????????????? ??????#???#????##? | | ?????????? ##########/################### | | ?????????? @ h | | ?????????? g* #? | | ?????????? a g!!/ #? | | ??????????? """ ###########k######## #? | | ?????????????"" !?????#??# T%=% # #? | | ?????????????"" k???????? ## !% # #? | | ????????????? ???????? ?## = #% #? | | ???????????? ?????????????# # #? | | ????????????????????????????# # ########? | | ???????????????????????????########## ##??###### | | ????????????????????????? ?# #* #?? # | | ???????????????????????? ??# """ * # #?? # | | ???????????????????????????# """ *!! / # | | ???????????????????????????# """ *# # # | | ?????????????????????????? # # # # | | ???????????????????????????# " !!# # # | | ???????????????????????????# "" # # # | | ???????????????????????????# " " # + # | | ???????????????????????#?#?# # # # | | ???????????????????????????########## ########## | | ????????????????????????????#??#??### #??????#?? | | ???????????????????????????#?????#?## #??#?????? | | ????????????????????????????#??????## #?#????##? | | ??????????????????????????????#??#?######?#?#????? | | ??????????????????????????????#????#?##???#???#?#? | +----------------------------------------------------+ Best States ------------- Heat Dissipation 41 Energy Generation 12 Energy Capacity 265 Matter Stores 300 Matter Capacity 300 Sight Range 16 Terrain Scan Range 14 Terrain Scan Density 60 Armor Coverage 150 Evasion (%) 40 Targeting Accuracy 5 Recoil Reduction 3 Item Schematics ----------------- None Robot Schematics ------------------ None Fabricated ------------ Nothing Alien Tech Used ----------------- None Achievements -------------- None Challenges ------------ None Game ------ Seed ArmageddonTacticalInverter Manual? 0 Play Time 00:17:31 Cumulative 4.0 hours Start 2020.02.09 @ 15:18:39 End 2020.02.09 @ 15:33:23 Sessions 1 Manual Loads 0 Difficulty Rogue Special Mode None Game No. 5 Rogue 5 Adventurer 0 Explorer 0 Win Type - Total 0 Types 0/0/0/0/0/0/0 Lore% 6 Gallery% 10 Achievement% 11 Wizard Run 0 Options --------- ASCII 0 Keyboard 0 Movement Mouse Keybinds 0 Fullscreen 1 Font 20/SmallcapsGlow Map View 66x50 Tactical HUD 1 Map Filters NONE Filters NONE Steam 1 RUN: a3be7d17-7bd5-4b3f-973c-233e7f4ac73f